fUSD/lending_fUSD_20250820
["ID","MTS","AMOUNT","RATE_DAILY","PERIOD"]
[380320260,1755671438472,-1000.0,0.00010925,2]
[380320262,1755671438481,-1425.0,0.00010945,2]
[380320264,1755671438490,-854.84934598,0.0001095,2]
[380320266,1755671438499,-1425.0,0.00010951,2]
[380320268,1755671438507,-5584.8336044,0.00010952,2]
[380320270,1755671438516,-1000.0,0.00010954,2]
[380320272,1755671438526,-809.46174385,0.00010957,2]
[380320274,1755671438535,-1425.0,0.00010963,2]
[380320276,1755671438544,-1000.0,0.00010971,2]
[380320279,1755671438553,-500.0,0.00010973,2]
[380320281,1755671438563,-500.0,0.00010973,2]
[380320282,1755671438572,-501.79069621,0.00010973,2]
[380320284,1755671438581,-500.0,0.00010973,2]
[380320287,1755671438590,-501.22235496,0.00010973,2]
[380320289,1755671438599,-500.0,0.00010973,2]
[380320291,1755671438608,-500.0,0.00010973,2]
[380320293,1755671438617,-500.0,0.00010973,2]
[380320295,1755671438626,-500.31250534,0.00010973,2]
[380320297,1755671438635,-500.0,0.00010973,2]
[380320299,1755671438645,-500.0,0.00010973,2]
[380320301,1755671438654,-495.76246675,0.00010973,2]
[380320303,1755671438664,-489.82399088,0.00010973,2]
[380320305,1755671438674,-510.23155259,0.00010973,2]
[380320307,1755671438683,-500.52263129,0.00010973,2]
[380320308,1755671438692,-500.0,0.00010973,2]
[380320311,1755671438702,-500.53587606,0.00010973,2]
[380320313,1755671438711,-2000.0,0.0001099,2]
[380320315,1755671438720,-1425.0,0.00010991,2]
[380320317,1755671438730,-375.7524142,0.00010992,2]
[380320318,1755671438739,-1705.2098205,0.00010992,2]
[380320320,1755671438747,-1000.0,0.00010993,2]
[380320323,1755671438757,-10665.06832908,0.00010999,2]
[380320325,1755671438767,-818.5,0.00010999,2]
[380320327,1755671438776,-151.16556236,0.00010999,2]
[380320329,1755671438786,-1467.0,0.00011,2]
[380320331,1755671438795,-4206.69089257,0.00011,2]
[380320333,1755671438804,-109434.78399851,0.00011,2]
[380320335,1755671438813,-301.45157035,0.00011,2]
[380320337,1755671438822,-2180514.29290049,0.00011,2]
[380320339,1755671438831,-293113.51,0.00011,2]
[380320341,1755671438841,-15862.85,0.00011,2]
[380320343,1755671438851,-1219.0,0.00011,2]
[380320345,1755671438860,-539.18,0.00011,2]
[380320347,1755671438869,-982653.3605826,0.00011,2]
[380320349,1755671438878,-6259595.16616284,0.00011,2]
[380320369,1755671439054,-9367.40571438,0.00011,2]
[380320473,1755671440091,-405.23902507,0.00011,2]
[380320475,1755671440102,-380.86587188,0.00011,2]
[380320477,1755671440114,-737.98888059,0.00011,2]
[380320480,1755671440130,-225703.30314607,0.00011,2]
[380320483,1755671440149,-662681.39530053,0.00011,2]
[380320485,1755671440161,-1021.545,0.00011,2]
[380320487,1755671440171,-16381.45805537,0.00011,2]
[380320489,1755671440183,-750.0,0.00011,2]
[380320509,1755671440563,-431.97,0.00011,2]
[380320510,1755671440576,-1785.48712321,0.00011,2]
[380320511,1755671440588,-22872.95367185,0.00011,2]
[380320512,1755671440600,-14515.16351684,0.00011,2]
[380320513,1755671440613,-310518.43677882,0.00011,2]
[380320514,1755671440625,-143755.08732565,0.00011,2]
[380320517,1755671442424,-1304.41468632,0.00011,2]
[380320519,1755671442439,-2379.42943927,0.00011,2]
[380320520,1755671442507,-9021.99819323,0.00011,2]
[380320521,1755671442635,-8705.19601974,0.00011,2]
[380320522,1755671442647,-2827.58825112,0.00011,2]
[380320523,1755671442658,-251.11678905,0.00011,2]
[380320524,1755671442682,-53028.48945656,0.00011,2]
[380320525,1755671442694,-588.0,0.00011,2]
[380320526,1755671442748,-7642.25806199,0.00011,2]
[380320590,1755671446954,-264.92536003,0.00010499,2]
[380320591,1755671446963,-208.68684888,0.00010499,2]
[380320592,1755671446973,-250.84674971,0.00010499,2]
[380320593,1755671446982,-4546.3014,0.00010877,2]
[380320594,1755671446991,-299.69418106,0.00011,2]
[380320595,1755671447027,-1190.15263926,0.00011,2]
[380320596,1755671447082,-1973.76169934,0.00011,2]
[380320597,1755671662366,661.8352047,0.00022,120]
[380320598,1755672279242,150.0,9.4e-05,2]
[380320602,1755672433103,170.0,9.976e-05,7]
[380320608,1755672550125,210.0,0.000221,120]
[380320609,1755672562984,210.0,0.000221,120]
[380320614,1755672631687,-333.93430056,9.97e-05,2]
[380320615,1755672631699,-676.02569944,9.97e-05,2]
[380320616,1755672631709,-323.69175804,9.98e-05,2]
[380320617,1755672631721,-1459.41560526,9.98e-05,2]
[380320618,1755672631733,-483.07287045,9.98e-05,2]
[380320619,1755672631745,-233.81976625,9.98e-05,2]
[380320620,1755672631755,-163.55,9.991e-05,2]
[380320621,1755672631765,-250.0,0.00010006,2]
[380320622,1755672631775,-729.66,0.0001002,2]
[380320623,1755672631785,-160.44565936,0.00010057,2]
[380320624,1755672631814,-839.55434064,0.00010057,2]
[380320625,1755672631825,-2601.24,0.00010175,2]
[380320626,1755672631834,-170.54,0.00010312,2]
[380320627,1755672631844,-277.35679052,0.00010521,2]
[380320628,1755672631854,-300.0,0.00010579,2]
[380320629,1755672631864,-1200.0,0.00010579,2]
[380320630,1755672631876,-150.0,0.0001058,2]
[380320631,1755672631885,-3535.48933634,0.0001058,2]
[380320632,1755672631909,-370.63653507,0.0001058,2]
[380320633,1755672632107,-544.24322174,0.0001058,2]
[380320634,1755672632119,-1000.0,0.0001058,2]
[380320635,1755672632130,-4747.14430452,0.0001058,2]
[380320636,1755672632141,-4630.34627651,0.0001058,2]
[380320637,1755672632153,-2852.19032582,0.0001058,2]
[380320638,1755672632167,-875.0,0.00010684,2]
[380320639,1755672632178,-500.0,0.00010685,2]
[380320640,1755672632187,-440.19385212,0.00010876,2]
[380320641,1755672632197,-1000.0,0.00010877,2]
[380320642,1755672632206,-487.4061,0.0001089,2]
[380320643,1755672632215,-150.0,0.00010899,2]
[380320644,1755672632225,-1398.11011821,0.000109,2]
[380320645,1755672632236,-3601.88988179,0.000109,2]
[380320646,1755672632245,-520.36341821,0.000109,2]
[380320647,1755672632256,-1186.06658179,0.000109,2]
[380320648,1755672632266,-413.28,0.000109,2]
[380320649,1755672632275,-936.02930458,0.000109,2]
[380320654,1755672632557,-642.64939542,0.000109,2]
[380320655,1755672632567,-187.8998356,0.000109,2]
[380320656,1755672632577,-567.43359965,0.000109,2]
[380320657,1755672632586,-3503.43662076,0.000109,2]
[380320658,1755672632595,-927.5163849,0.000109,2]
[380320659,1755672632604,-1000.0,0.00010928,2]
[380320660,1755672632614,-268.08572767,0.00010947,2]
[380320661,1755672632623,-4926.7,0.00010959,2]
[380320662,1755672632633,-150.0,0.00010959,2]
[380320663,1755672632642,-2500.0,0.00010967,2]
[380320664,1755672632651,-1425.0,0.0001097,2]
[380320665,1755672632661,-321.06082628,0.0001098,2]
[380320666,1755672632670,-250.0,0.0001099,2]
[380320667,1755672632680,-872.81431983,0.00010992,2]
[380320668,1755672632689,-3562.6591685,0.00010992,2]
[380320669,1755672632699,-747.0400152,0.00010992,2]
[380320670,1755672632708,-322.6107,0.00010993,2]
[380320671,1755672632718,-721.12765535,0.00010993,2]
[380320672,1755672632727,-217.90931501,0.00010993,2]
[380320673,1755672632737,-159.47177447,0.00010993,2]
[380320674,1755672632746,-500.0,0.00010999,2]
[380320675,1755672632755,-81749.53854475,0.00011,2]
[380320676,1755672632767,-4344.04870332,0.00011,2]
[380320677,1755672632778,-322.72775418,0.00011,2]
[380320678,1755672632789,-1600.0,0.00011,2]
[380320680,1755672637542,-5595.20643368,0.00011,2]
[380320681,1755672637590,-1377.65288869,0.00011,2]
[380320682,1755672637834,-260.0,0.00011,2]
[380320940,1755672640351,-117359.20574072,0.00011,2]
[380321011,1755672641008,2350.01679615,8.9e-05,2]
[380321035,1755672642629,-15845.91475545,0.00011,2]
[380321037,1755672642793,-297.65007258,0.00011,2]
[380321038,1755672644074,-538.69,0.00010999,2]
[380321039,1755672644086,-245.71,0.00010999,2]
[380321040,1755672644095,-757.70372954,0.00011,2]
[380321047,1755672645561,-9611.17299147,0.00011,2]
[380321050,1755672797990,-151.0,9.79e-05,2]
[380321051,1755672799847,-11.06,9.79e-05,2]
[380321052,1755672799871,-139.94,9.803e-05,2]
[380321053,1755672803327,-22.12,9.803e-05,2]
[380321054,1755672803356,-162.06,9.815e-05,2]
[380321055,1755672803396,-162.06,9.828e-05,2]
[380321056,1755672803421,-162.06,9.84e-05,2]
[380321057,1755672803446,-162.06,9.853e-05,2]
[380321058,1755672803469,-162.06,9.866e-05,2]
[380321059,1755672803496,-162.06,9.878e-05,2]
[380321060,1755672803519,-35.403528,9.891e-05,2]
[380321061,1755672804717,-126.656472,9.891e-05,2]
[380321062,1755672804742,-162.06,9.904e-05,2]
[380321063,1755672804766,-162.06,9.916e-05,2]
[380321064,1755672804790,-162.06,9.929e-05,2]
[380321065,1755672804813,-237.115671,9.929e-05,2]
[380321066,1755672812345,-262.957459,9.929e-05,2]
[380321067,1755672813401,-84.28687,9.929e-05,2]
[380321068,1755672815647,-151.0,0.00010281,2]
[380321069,1755672820179,-151.0,0.00010281,2]
[380321070,1755672823402,-151.0,0.00010281,2]
[380321071,1755672916537,-200.0,9.911e-05,2]
[380321072,1755672916562,-151.420153,0.00010281,2]
[380321073,1755672918615,-291.677148,0.00010281,2]
[380321074,1755673110018,-153.44,9.905e-05,2]
[380321075,1755673113481,-7.65,9.905e-05,2]
[380321076,1755673329750,150.0,9.3e-05,2]
[380321078,1755673496246,-382.327962,9.877e-05,2]
[380321079,1755673544842,-152.0,9.876e-05,2]
[380321080,1755673548121,-151.0,9.876e-05,2]
[380321081,1755673550473,-192.07192918,9.876e-05,2]
[380321082,1755673553477,-159.2758272,9.876e-05,2]
[380321083,1755673556286,-208.382664,9.876e-05,2]
[380321084,1755673559109,-151.0,9.876e-05,2]
[380321085,1755673560626,-377.659877,9.876e-05,2]
[380321086,1755673566639,-262.957459,9.876e-05,2]
[380321087,1755673568834,-162.0,9.876e-05,2]
[380321088,1755673570443,-153.44,9.876e-05,2]
[380321089,1755673575179,-151.0,9.876e-05,2]
[380321090,1755673583148,-152.17377453,9.876e-05,2]
[380321091,1755673586359,-170.54,9.876e-05,2]
[380321092,1755673589939,-29.46846909,9.876e-05,2]
[380321093,1755673589964,-122.652038,9.877e-05,2]
[380321095,1755673604998,170.0,9.873e-05,7]
[380321100,1755673831999,-102.63046458,9.745e-05,2]
[380321101,1755673832011,-50.80953542,9.745e-05,2]
[380321102,1755673832022,-153.44,9.883e-05,2]
[380321103,1755673832032,-563.536003,0.00010229,2]
[380321104,1755673832043,-103.902699,0.00010281,2]
[380321105,1755673832053,-175.67387819,0.00010368,2]
[380321106,1755673832064,-277.35679052,0.00010462,2]
[380321107,1755673832074,-275.28109387,0.00010466,2]
[380321108,1755673832086,-224.71890613,0.00010466,2]
[380321109,1755673832096,-180.37949387,0.00010468,2]
[380321110,1755673832141,-1200.0,0.00010468,2]
[380321122,1755673832510,-1500.0,0.00010468,2]
[380321124,1755673832522,-439.88680411,0.00010468,2]
[380321126,1755673832532,-150.0,0.0001048,2]
[380321128,1755673832542,-175.67387819,0.0001068,2]
[380321132,1755673832561,-150.0,0.00010734,2]
[380321134,1755673832572,-901.5575299,0.00010734,2]
[380321137,1755673832585,-298.4424701,0.00010734,2]
[380321139,1755673832595,-150.0,0.00010735,2]
[380321140,1755673832605,-150.0,0.00010735,2]
[380321141,1755673832614,-67.5575299,0.00010735,2]
[380321153,1755673833931,-434.13,0.00010735,2]
[380321154,1755673833944,-1689.8224701,0.00010735,2]
[380321155,1755673833954,-295.89,0.00010735,2]
[380321156,1755673834378,-999.99,0.00010735,2]
[380321157,1755673834388,-150.99,0.00010735,2]
[380321158,1755673834397,-423.0,0.00010737,2]
[380321159,1755673834406,-150.0,0.00010746,2]
[380321160,1755673834415,-150.0,0.00010753,2]
[380321161,1755673834424,-160.0,0.00010754,2]
[380321162,1755673834434,-322.6107,0.00010754,2]
[380321163,1755673834443,-3659.6968299,0.00010754,2]
[380321164,1755673834473,-2309.307,0.00010754,2]
[380321168,1755673837906,-2222.3361701,0.00010754,2]
[380321169,1755673837916,-299.99,0.00010754,2]
[380321170,1755673837925,-9011.5962299,0.00010754,2]
[380321171,1755673837961,-988.3937701,0.00010754,2]
[380321172,1755673837971,-500.0,0.0001076,2]
[380321173,1755673837981,-500.0,0.0001076,2]
[380321174,1755673837991,-500.0,0.0001076,2]
[380321175,1755673838000,-500.0,0.0001076,2]
[380321176,1755673838010,-500.0,0.0001076,2]
[380321177,1755673838020,-500.0,0.0001076,2]
[380321178,1755673838030,-23.40504309,0.0001076,2]
[380321181,1755673838347,-396.59495691,0.0001076,2]
[380321182,1755673838358,-93633.73659353,0.00010761,2]
[380321183,1755673838368,-220.09692606,0.0001078,2]
[380321184,1755673838378,-150.0,0.00010783,2]
[380321185,1755673838387,-151.0,0.00010785,2]
[380321186,1755673838397,-150.0,0.00010785,2]
[380321187,1755673838407,-401.0,0.00010805,2]
[380321188,1755673838416,-150.0,0.00010812,2]
[380321189,1755673838425,-150.0,0.00010818,2]
[380321190,1755673838435,-150.0,0.00010821,2]
[380321191,1755673838445,-150.0,0.00010826,2]
[380321192,1755673838454,-150.0,0.00010826,2]
[380321193,1755673838464,-150.0,0.0001083,2]
[380321194,1755673838474,-240.0,0.0001083,2]
[380321195,1755673838486,-1564.0,0.0001083,2]
[380321196,1755673838496,-150.0,0.00010835,2]
[380321198,1755673838506,-150.0,0.00010845,2]
[380321200,1755673838515,-1483.25205673,0.00010847,2]
[380321202,1755673838526,-150.0,0.00010855,2]
[380321204,1755673838536,-150.0,0.00010855,2]
[380321206,1755673838545,-150.0,0.00010858,2]
[380321208,1755673838555,-150.40928155,0.00010877,2]
[380321210,1755673838565,-406.17175,0.0001089,2]
[380321212,1755673838576,-150.0,0.00010897,2]
[380321214,1755673838586,-1000.0,0.000109,2]
[380321216,1755673838595,-1085.08,0.000109,2]
[380321218,1755673838605,-1000.0,0.000109,2]
[380321220,1755673838614,-1876.4484,0.000109,2]
[380321222,1755673838624,-269.90217845,0.000109,2]
[380321224,1755673838633,-2335.62441384,0.000109,2]
[380321226,1755673838643,-4768.73375114,0.00010901,2]
[380321228,1755673838653,-150.0,0.00010904,2]
[380321230,1755673838663,-150.0,0.00010905,2]
[380321232,1755673838674,-150.0,0.0001092,2]
[380321234,1755673838683,-150.0,0.0001092,2]
[380321236,1755673838693,-500.0,0.00010932,2]
[380321238,1755673838704,-150.0,0.00010941,2]
[380321240,1755673838719,-1538.64321238,0.00010942,2]
[380321243,1755673838728,-150.0,0.00010945,2]
[380321244,1755673838738,-150.0,0.00010954,2]
[380321247,1755673838747,-150.0,0.00010965,2]
[380321249,1755673838758,-3984.42095307,0.0001097,2]
[380321251,1755673838768,-500.0,0.00010973,2]
[380321253,1755673838778,-500.0,0.00010973,2]
[380321255,1755673838789,-5560.3952764,0.00010984,2]
[380321257,1755673838799,-408.6142765,0.00010985,2]
[380321259,1755673838809,-1866.3960133,0.00010992,2]
[380321261,1755673838820,-205.3205288,0.00010992,2]
[380321263,1755673838830,-740.1975987,0.00010992,2]
[380321265,1755673838839,-202.09144151,0.00010992,2]
[380321267,1755673838850,-150.0,0.00010996,2]
[380321269,1755673838860,-500.0,0.00010999,2]
[380321271,1755673838871,-500.0,0.00010999,2]
[380321273,1755673838881,-2011.42728135,0.00010999,2]
[380321275,1755673838891,-765.18,0.00010999,2]
[380321278,1755673838903,-1446.0,0.00011,2]
[380321280,1755673838913,-5329.24073344,0.00011,2]
[380321282,1755673838923,-2103.34544628,0.00011,2]
[380321330,1755673839355,-2376007.29188836,0.00011,2]
[380321332,1755673839364,-949197.81802828,0.00011,2]
[380321335,1755673839377,-3017.50187538,0.00011,2]
[380321337,1755673839388,-4241.0,0.00011,2]
[380321437,1755673840137,-54153.57761547,0.00011,2]
[380321449,1755673840241,-57400.73075494,0.00011,2]
[380321451,1755673840252,-894.71561277,0.00011,2]
[380321453,1755673840264,-3765.99980333,0.00011,2]
[380321499,1755673840696,-103.12734893,0.00011,2]
[380321501,1755673840709,-661.23659678,0.00011,2]
[380321503,1755673840723,-2676.96101821,0.00011,2]
[380321506,1755673840734,-5342.36356997,0.00011,2]
[380321508,1755673840746,-211967.74448588,0.00011,2]
[380321608,1755673842875,-6116.67354678,0.00011,2]
[380321610,1755673842949,-290.86075224,0.00011,2]
[380321611,1755673842961,-460.89869902,0.00011,2]
[380321612,1755673842973,-14488.00000226,0.00011,2]
[380321613,1755673843298,-86332.5,0.00011,2]
[380321812,1755673845888,-313887.87172291,0.00011,2]
[380321813,1755673845898,-140965.87595644,0.00011,2]
[380321814,1755673845907,-17965.3504346,0.00011,2]
[380321815,1755673845917,-1524.1973089,0.00011,2]
[380321816,1755673845926,-172.1224594,0.00011,2]
[380321817,1755673845935,-212668.4204342,0.00011,2]
[380321818,1755673846068,-28466.879544,0.00011,2]
[380321819,1755673846082,-12120.82701726,0.00011,2]
[380321820,1755673846167,-1070.22,0.00011,2]
[380321821,1755673846180,-7539.63614459,0.00011,2]
[380321888,1755673926993,-150.0,0.000102,2]
[380321889,1755673927017,-70.09692606,0.0001078,2]
[380321890,1755674108642,-281.23318223,0.00010246,2]
[380321891,1755674110250,-151.0,0.00010246,2]
[380321901,1755674511081,-228.0323062,0.00010088,2]
[380321902,1755674512720,-271.9676938,0.00010088,2]
[380321904,1755674578049,-151.0,0.00010088,2]
[380321905,1755674580227,-349.0,0.00010088,2]
[380321906,1755674580250,-30.031533,0.00010088,2]
[380321907,1755674582290,-151.0,0.00010088,2]
[380321908,1755674584022,-151.0,0.00010088,2]
[380321909,1755674586172,-151.0,0.00010088,2]
[380321911,1755674589611,-16.968467,0.00010088,2]
[380321912,1755674589634,-134.031533,0.00010088,2]
[380321913,1755674591294,-365.968467,0.00010088,2]
[380321914,1755674591318,-216.03,0.00010088,2]
[380321915,1755674592652,170.0,0.00010134,7]
[380321916,1755674592796,-153.44,0.00010088,2]
[380321920,1755674871813,-153.44,0.0001004,2]
[380321921,1755674874019,-151.0,0.0001004,2]
[380321922,1755674876960,-205.89,0.0001004,2]
[380321923,1755674879760,-200.471303,0.0001004,2]
[380321924,1755674883666,-151.0,0.0001004,2]
[380321925,1755674887505,-303.536632,0.0001004,2]
[380321926,1755674890931,-151.0,0.0001004,2]
[380321927,1755674896824,-581.998467,0.0001004,2]
[380321928,1755674898439,-280.733598,0.0001004,2]
[380321950,1755675032115,-250.0,0.00010038,2]
[380321951,1755675032124,-39.8505,0.0001004,2]
[380321952,1755675032136,-39.0895,0.0001004,2]
[380321953,1755675032145,-150.0,0.00010087,2]
[380321954,1755675032154,-130.53,0.00010088,2]
[380321955,1755675032166,-46.7785,0.00010088,2]
[380321956,1755675032177,-453.2215,0.00010088,2]
[380321957,1755675032186,-500.0,0.00010088,2]
[380321958,1755675032195,-500.0,0.00010088,2]
[380321959,1755675032204,-500.0,0.00010088,2]
[380321960,1755675032213,-500.0,0.00010088,2]
[380321961,1755675032222,-49.25053182,0.00010088,2]
[380322006,1755675032849,-450.74946818,0.00010088,2]
[380322007,1755675032859,-500.0,0.00010088,2]
[380322008,1755675032868,-500.0,0.00010088,2]
[380322009,1755675032879,-500.0,0.00010088,2]
[380322010,1755675032888,-500.0,0.00010088,2]
[380322011,1755675032897,-500.0,0.00010088,2]
[380322012,1755675032907,-500.0,0.00010088,2]
[380322013,1755675032917,-500.0,0.00010088,2]
[380322014,1755675032926,-500.0,0.00010088,2]
[380322015,1755675032935,-500.0,0.00010088,2]
[380322016,1755675032944,-500.0,0.00010088,2]
[380322017,1755675032954,-500.0,0.00010088,2]
[380322018,1755675032963,-506.08,0.00010088,2]
[380322019,1755675032972,-500.0,0.00010088,2]
[380322020,1755675032982,-500.0,0.00010088,2]
[380322021,1755675032991,-500.0,0.00010088,2]
[380322022,1755675033000,-500.0,0.00010088,2]
[380322023,1755675033009,-500.0,0.00010088,2]
[380322024,1755675033019,-500.0,0.00010088,2]
[380322026,1755675033028,-500.0,0.00010088,2]
[380322027,1755675033038,-500.0,0.00010088,2]
[380322028,1755675033047,-500.0,0.00010088,2]
[380322029,1755675033056,-500.0,0.00010088,2]
[380322030,1755675033066,-500.0,0.00010088,2]
[380322031,1755675033075,-500.0,0.00010088,2]
[380322032,1755675033085,-500.0,0.00010088,2]
[380322033,1755675033099,-403.04,0.00010088,2]
[380322034,1755675033108,-500.0,0.00010088,2]
[380322035,1755675033117,-500.0,0.00010088,2]
[380322036,1755675033127,-500.0,0.00010088,2]
[380322037,1755675033137,-500.0,0.00010088,2]
[380322038,1755675033146,-500.0,0.00010088,2]
[380322039,1755675033156,-500.0,0.00010088,2]
[380322040,1755675033166,-500.0,0.00010088,2]
[380322041,1755675033176,-500.0,0.00010088,2]
[380322042,1755675033187,-500.0,0.00010088,2]
[380322043,1755675033197,-500.0,0.00010088,2]
[380322044,1755675033207,-500.0,0.00010088,2]
[380322045,1755675033216,-500.0,0.00010088,2]
[380322046,1755675033226,-500.0,0.00010088,2]
[380322047,1755675033235,-500.0,0.00010088,2]
[380322048,1755675033245,-500.0,0.00010088,2]
[380322049,1755675033255,-500.0,0.00010088,2]
[380322050,1755675033264,-500.0,0.00010088,2]
[380322051,1755675033273,-500.0,0.00010088,2]
[380322052,1755675033282,-500.0,0.00010088,2]
[380322053,1755675033291,-500.0,0.00010088,2]
[380322054,1755675033301,-500.0,0.00010088,2]
[380322055,1755675033311,-500.0,0.00010088,2]
[380322056,1755675033320,-500.0,0.00010088,2]
[380322057,1755675033330,-500.0,0.00010088,2]
[380322058,1755675033340,-500.0,0.00010088,2]
[380322059,1755675033350,-500.0,0.00010088,2]
[380322060,1755675033360,-500.0,0.00010088,2]
[380322061,1755675033369,-500.0,0.00010088,2]
[380322062,1755675033379,-500.0,0.00010088,2]
[380322063,1755675033389,-500.0,0.00010088,2]
[380322064,1755675033399,-500.0,0.00010088,2]
[380322065,1755675033409,-500.0,0.00010088,2]
[380322066,1755675033419,-500.0,0.00010088,2]
[380322067,1755675033429,-500.0,0.00010088,2]
[380322068,1755675033438,-326.19,0.00010088,2]
[380322069,1755675033448,-252.49,0.00010161,2]
[380322070,1755675033457,-162.01,0.00010189,2]
[380322071,1755675033466,-583.72,0.00010196,2]
[380322072,1755675033476,-567.76681777,0.00010246,2]
[380322073,1755675033487,-170.54,0.00010366,2]
[380322074,1755675033497,-151.0,0.00010392,2]
[380322075,1755675033506,-434.33076576,0.00010392,2]
[380322076,1755675033518,-402.93923424,0.00010392,2]
[380322077,1755675033528,-97.06076576,0.00010392,2]
[380322080,1755675038022,-380.0,0.00010391,2]
[380322081,1755675038032,-53.92923424,0.00010392,2]
[380322082,1755675038041,-348.39,0.00010392,2]
[380322083,1755675038051,-150.99,0.00010392,2]
[380322084,1755675038060,-21072.23,0.00010392,2]
[380322085,1755675038069,-8099.56,0.0001078,2]
[380322086,1755675038079,-231.8,0.0001078,2]
[380322087,1755675038090,-299.99,0.0001078,2]
[380322088,1755675038103,-150.5,0.0001078,2]
[380322089,1755675038113,-866.76092418,0.000109,2]
[380322090,1755675038124,-1024.74,0.000109,2]
[380322091,1755675038135,-10000.0,0.000109,2]
[380322092,1755675038145,-320.2047262,0.000109,2]
[380322093,1755675038155,-179.93478564,0.000109,2]
[380322094,1755675038165,-1557.08294256,0.000109,2]
[380322095,1755675038174,-831.21400138,0.000109,2]
[380322096,1755675038184,-150.0,0.00010959,2]
[380322097,1755675038193,-500.0,0.00010973,2]
[380322098,1755675038203,-165.84158159,0.00010973,2]
[380322099,1755675038213,-500.0,0.00010973,2]
[380322100,1755675038223,-500.0,0.00010973,2]
[380322101,1755675038234,-500.0,0.00010973,2]
[380322102,1755675038243,-500.0,0.00010973,2]
[380322103,1755675038252,-295.37562445,0.00010973,2]
[380322104,1755675038262,-500.0,0.00010973,2]
[380322105,1755675038271,-500.0,0.00010973,2]
[380322106,1755675038280,-500.16367752,0.00010973,2]
[380322107,1755675038290,-500.0,0.00010973,2]
[380322108,1755675038299,-500.0,0.00010973,2]
[380322109,1755675038308,-500.0,0.00010973,2]
[380322110,1755675038317,-500.0,0.00010973,2]
[380322111,1755675038327,-500.0,0.00010973,2]
[380322112,1755675038336,-509.20086652,0.00010973,2]
[380322113,1755675038346,-500.0,0.00010973,2]
[380322114,1755675038355,-500.0,0.00010973,2]
[380322115,1755675038364,-277.35679052,0.00010987,2]
[380322116,1755675038373,-1361.4595646,0.00010992,2]
[380322117,1755675038383,-160.0,0.00010993,2]
[380322118,1755675038394,-322.6107,0.00010993,2]
[380322119,1755675038403,-3000.0,0.00010998,2]
[380322120,1755675038413,-3456.71471326,0.00010999,2]
[380322121,1755675038422,-733.3,0.00010999,2]
[380322122,1755675038432,-1517.5276682,0.00010999,2]
[380322123,1755675038441,-14218.2290838,0.00010999,2]
[380322124,1755675038451,-1745.0,0.00011,2]
[380322125,1755675038460,-4206.69089257,0.00011,2]
[380322126,1755675038470,-301.45157035,0.00011,2]
[380322127,1755675038479,-151.0,0.00011,2]
[380322128,1755675038489,-152.17377453,0.00011,2]
[380322129,1755675038498,-3851.8244079,0.00011,2]
[380322130,1755675038507,-200.0,0.00011,2]
[380322131,1755675038516,-150.0,0.00011,2]
[380322133,1755675038526,-200.0,0.00011,2]
[380322135,1755675038535,-500.0,0.00011,2]
[380322137,1755675038544,-500.0,0.00011,2]
[380322139,1755675038553,-150.0,0.00011,2]
[380322141,1755675038563,-150.0,0.00011,2]
[380322143,1755675038572,-995898.0381176,0.00011,2]
[380322145,1755675038581,-538.24,0.00011,2]
[380322147,1755675038589,-8081764.79696771,0.00011,2]
[380322149,1755675038598,-468.62,0.00011,2]
[380322151,1755675038608,-151.0,0.00011,2]
[380322153,1755675038617,-1219.0,0.00011,2]